[Event "*** Titled Tuesday Blitz"]
[Site "Chess.com"]
[Date "2020.04.07"]
[Round "6"]
[White "stefan_95"]
[Black "Gordima"]
[Result "1-0"]
[WhiteElo "2647"]
[BlackElo "2785"]
[TimeControl "180+1"]
[EndTime "14:08:26 PDT"]
[Termination "stefan_95 won on time"]

1. d4 {[%clk 0:03:00.9]} 1... Nf6 {[%clk 0:02:58.8]} 2. Nf3 {[%clk 0:03:01.2]}
2... d5 {[%clk 0:02:57.9]} 3. Bf4 {[%clk 0:03:00.6]} 3... c5 {[%clk 0:02:54.5]}
4. e3 {[%clk 0:03:00.7]} 4... Nc6 {[%clk 0:02:54.1]} 5. Nbd2 {[%clk 0:03:01]}
5... cxd4 {[%clk 0:02:47.7]} 6. exd4 {[%clk 0:03:00.7]} 6... g6 {[%clk
0:02:48.6]} 7. c3 {[%clk 0:03:00.2]} 7... Bg7 {[%clk 0:02:49]} 8. Bd3 {[%clk
0:02:59]} 8... Bf5 {[%clk 0:02:49]} 9. Bxf5 {[%clk 0:02:57.2]} 9... gxf5 {[%clk
0:02:49.9]} 10. Qb3 {[%clk 0:02:57.4]} 10... Qc8 {[%clk 0:02:45.1]} 11. h3
{[%clk 0:02:53.9]} 11... e6 {[%clk 0:02:28.5]} 12. O-O {[%clk 0:02:53.6]} 12...
O-O {[%clk 0:02:26.6]} 13. Rfe1 {[%clk 0:02:53.3]} 13... Ne4 {[%clk 0:02:24.3]}
14. Nf1 {[%clk 0:02:29.4]} 14... Ne7 {[%clk 0:02:08.5]} 15. Ne5 {[%clk
0:02:24.3]} 15... Ng6 {[%clk 0:02:05.8]} 16. Nxg6 {[%clk 0:02:23.1]} 16... hxg6
{[%clk 0:02:04.9]} 17. f3 {[%clk 0:02:21.7]} 17... Nf6 {[%clk 0:02:01.8]} 18. a4
{[%clk 0:02:12.5]} 18... Qd7 {[%clk 0:01:56.2]} 19. a5 {[%clk 0:02:11.7]} 19...
Ne8 {[%clk 0:01:41.5]} 20. Ra4 {[%clk 0:02:08.7]} 20... Nd6 {[%clk 0:01:35.2]}
21. Rb4 {[%clk 0:02:02.2]} 21... Rab8 {[%clk 0:01:20.4]} 22. Nd2 {[%clk
0:01:40.1]} 22... Rfc8 {[%clk 0:01:16.8]} 23. Nb1 {[%clk 0:01:39.2]} 23... Rc6
{[%clk 0:00:50.6]} 24. Na3 {[%clk 0:01:35.4]} 24... a6 {[%clk 0:00:47.2]} 25.
Kh1 {[%clk 0:01:01.4]} 25... Bf8 {[%clk 0:00:45.7]} 26. Nc2 {[%clk 0:00:11.5]}
26... Rbc8 {[%clk 0:00:42.8]} 27. Bxd6 {[%clk 0:00:09.4]} 27... Qxd6 {[%clk
0:00:43.7]} 28. Rxb7 {[%clk 0:00:09.2]} 28... Qg3 {[%clk 0:00:44.3]} 29. Kg1
{[%clk 0:00:06.3]} 29... Bd6 {[%clk 0:00:44.7]} 30. Kf1 {[%clk 0:00:04.8]} 30...
Qh2 {[%clk 0:00:45.1]} 31. Ne3 {[%clk 0:00:04.4]} 31... Bg3 {[%clk 0:00:45]} 32.
Rd1 {[%clk 0:00:03.3]} 32... f4 {[%clk 0:00:41.4]} 33. Ng4 {[%clk 0:00:02.8]}
33... Qh1+ {[%clk 0:00:41.3]} 34. Ke2 {[%clk 0:00:03.3]} 34... Qxg2+ {[%clk
0:00:41.9]} 35. Kd3 {[%clk 0:00:03.9]} 35... Qxf3+ {[%clk 0:00:42.3]} 36. Kc2
{[%clk 0:00:04.3]} 36... Qe4+ {[%clk 0:00:38.6]} 37. Kc1 {[%clk 0:00:03.8]}
37... Kg7 {[%clk 0:00:25.3]} 38. Ne5 {[%clk 0:00:03.8]} 38... R6c7 {[%clk
0:00:25.1]} 39. Rxc7 {[%clk 0:00:04.3]} 39... Rxc7 {[%clk 0:00:26]} 40. Qb6
{[%clk 0:00:04.6]} 40... Re7 {[%clk 0:00:15.8]} 41. Qxa6 {[%clk 0:00:04.6]}
41... f3 {[%clk 0:00:16.2]} 42. Qd3 {[%clk 0:00:03.5]} 42... Bf4+ {[%clk
0:00:16.5]} 43. Kc2 {[%clk 0:00:03.2]} 43... f2 {[%clk 0:00:14.8]} 44. Qxe4
{[%clk 0:00:02.5]} 44... dxe4 {[%clk 0:00:15.7]} 45. Rf1 {[%clk 0:00:02.4]}
45... e3 {[%clk 0:00:08.7]} 46. Kd3 {[%clk 0:00:02.1]} 46... f6 {[%clk
0:00:07.3]} 47. Nc4 {[%clk 0:00:02.4]} 47... Ra7 {[%clk 0:00:02.5]} 48. Nxe3
{[%clk 0:00:02.4]} 48... Bg3 {[%clk 0:00:01.5]} 49. Nd1 {[%clk 0:00:02.2]} 49...
Rxa5 {[%clk 0:00:01.4]} 50. Nxf2 {[%clk 0:00:03.1]} 1-0

[Event "*** Titled Tuesday Blitz"]
[Site "Chess.com"]
[Date "2020.04.07"]
[Round "6"]
[White "GHANDEEVAM2003"]
[Black "KuzubovYuriy"]
[Result "0-1"]
[WhiteElo "2961"]
[BlackElo "2832"]
[TimeControl "180+1"]
[EndTime "14:08:27 PDT"]
[Termination "KuzubovYuriy won by resignation"]

1. d4 {[%clk 0:03:00.9]} 1... Nf6 {[%clk 0:02:59.5]} 2. Bg5 {[%clk 0:03:00.1]}
2... d5 {[%clk 0:02:57.8]} 3. Nd2 {[%clk 0:02:59.9]} 3... e6 {[%clk 0:02:57]} 4.
e4 {[%clk 0:02:59.4]} 4... dxe4 {[%clk 0:02:55.5]} 5. Nxe4 {[%clk 0:02:59.6]}
5... Nbd7 {[%clk 0:02:53.8]} 6. Nf3 {[%clk 0:02:58.4]} 6... Be7 {[%clk
0:02:50.2]} 7. Nxf6+ {[%clk 0:02:54.6]} 7... Nxf6 {[%clk 0:02:51.1]} 8. Bd3
{[%clk 0:02:51]} 8... b6 {[%clk 0:02:47.7]} 9. Ne5 {[%clk 0:02:35.7]} 9... Qd5
{[%clk 0:02:46.9]} 10. Qf3 {[%clk 0:02:03.1]} 10... Qxf3 {[%clk 0:02:37.8]} 11.
Nxf3 {[%clk 0:02:04]} 11... h6 {[%clk 0:02:31.5]} 12. Bxf6 {[%clk 0:01:59.1]}
12... Bxf6 {[%clk 0:02:30.1]} 13. Be4 {[%clk 0:01:59.5]} 13... Rb8 {[%clk
0:02:28.8]} 14. O-O-O {[%clk 0:02:00]} 14... Ke7 {[%clk 0:02:25.5]} 15. Rhe1
{[%clk 0:01:58.3]} 15... Rd8 {[%clk 0:02:23.5]} 16. c3 {[%clk 0:01:56.5]} 16...
Bd7 {[%clk 0:02:20.1]} 17. Kc2 {[%clk 0:01:55.3]} 17... Ba4+ {[%clk 0:02:18.2]}
18. b3 {[%clk 0:01:55.2]} 18... Be8 {[%clk 0:02:17]} 19. c4 {[%clk 0:01:53.7]}
19... c5 {[%clk 0:02:08.8]} 20. d5 {[%clk 0:01:52.9]} 20... exd5 {[%clk
0:02:07.6]} 21. Bxd5+ {[%clk 0:01:48.1]} 21... Kf8 {[%clk 0:02:08.1]} 22. Ne5
{[%clk 0:01:38.4]} 22... a6 {[%clk 0:01:58.7]} 23. f4 {[%clk 0:01:36.8]} 23...
b5 {[%clk 0:01:56.9]} 24. g3 {[%clk 0:01:36]} 24... g6 {[%clk 0:01:53.3]} 25.
Re3 {[%clk 0:01:31.8]} 25... g5 {[%clk 0:01:36.9]} 26. fxg5 {[%clk 0:01:25.3]}
26... hxg5 {[%clk 0:01:21]} 27. Rf1 {[%clk 0:01:25.3]} 27... Kg7 {[%clk
0:01:19.3]} 28. Ng4 {[%clk 0:01:24.3]} 28... Rb6 {[%clk 0:00:53.5]} 29. Rf5
{[%clk 0:00:54.7]} 29... Bd7 {[%clk 0:00:32.6]} 30. Rxf6 {[%clk 0:00:54.7]}
30... Rxf6 {[%clk 0:00:31.9]} 31. Nxf6 {[%clk 0:00:55.6]} 31... Kxf6 {[%clk
0:00:32.5]} 32. Rf3+ {[%clk 0:00:55.6]} 32... Ke5 {[%clk 0:00:32.8]} 33. Rxf7
{[%clk 0:00:46.2]} 33... Bf5+ {[%clk 0:00:32.1]} 34. Kb2 {[%clk 0:00:45.8]}
34... Rh8 {[%clk 0:00:28.4]} 35. Re7+ {[%clk 0:00:46]} 35... Kd4 {[%clk
0:00:26.8]} 36. Re2 {[%clk 0:00:45.9]} 36... Bd3 {[%clk 0:00:26.1]} 37. Rd2
{[%clk 0:00:46.3]} 37... Ke3 {[%clk 0:00:25]} 38. Rg2 {[%clk 0:00:45.8]} 38...
b4 {[%clk 0:00:19.7]} 39. a3 {[%clk 0:00:35.5]} 39... a5 {[%clk 0:00:19.7]} 40.
axb4 {[%clk 0:00:34.6]} 40... axb4 {[%clk 0:00:20.6]} 41. g4 {[%clk 0:00:34.5]}
41... Rh3 {[%clk 0:00:16.2]} 42. Bc6 {[%clk 0:00:25.8]} 42... Bg6 {[%clk
0:00:15.5]} 43. Kc1 {[%clk 0:00:21.6]} 43... Kd4 {[%clk 0:00:15.3]} 44. Kb2
{[%clk 0:00:21.3]} 44... Re3 {[%clk 0:00:13.9]} 45. Rd2+ {[%clk 0:00:20.9]}
45... Bd3 {[%clk 0:00:12.5]} 46. Bg2 {[%clk 0:00:16.8]} 46... Re2 {[%clk
0:00:11.8]} 47. Kc1 {[%clk 0:00:16]} 47... Re1+ {[%clk 0:00:10.4]} 48. Kb2
{[%clk 0:00:14.5]} 48... Ke3 {[%clk 0:00:09.6]} 49. Rc2 {[%clk 0:00:11.9]} 49...
Bxc2 {[%clk 0:00:09.5]} 0-1

[Event "*** Titled Tuesday Blitz"]
[Site "Chess.com"]
[Date "2020.04.07"]
[Round "6"]
[White "harvsp123"]
[Black "VladDobrov"]
[Result "1-0"]
[WhiteElo "2571"]
[BlackElo "2864"]
[TimeControl "180+1"]
[EndTime "14:08:29 PDT"]
[Termination "harvsp123 won by resignation"]

1. e4 {[%clk 0:03:00.9]} 1... e5 {[%clk 0:02:59.8]} 2. Nf3 {[%clk 0:02:58.9]}
2... Nc6 {[%clk 0:02:58.5]} 3. Bb5 {[%clk 0:02:56.3]} 3... Nf6 {[%clk
0:02:58.3]} 4. O-O {[%clk 0:02:54.4]} 4... Nxe4 {[%clk 0:02:58.4]} 5. d4 {[%clk
0:02:53.6]} 5... Nd6 {[%clk 0:02:58.6]} 6. Bxc6 {[%clk 0:02:53.2]} 6... dxc6
{[%clk 0:02:59.5]} 7. dxe5 {[%clk 0:02:53.8]} 7... Nf5 {[%clk 0:02:59.7]} 8.
Qxd8+ {[%clk 0:02:53.9]} 8... Kxd8 {[%clk 0:03:00.6]} 9. h3 {[%clk 0:02:54.1]}
9... h5 {[%clk 0:02:58.3]} 10. Nc3 {[%clk 0:02:50.7]} 10... a5 {[%clk
0:02:58.1]} 11. a4 {[%clk 0:02:48.3]} 11... h4 {[%clk 0:02:51.9]} 12. Ne2 {[%clk
0:02:46.1]} 12... Be7 {[%clk 0:02:50]} 13. Rd1+ {[%clk 0:02:43]} 13... Ke8
{[%clk 0:02:49.9]} 14. b3 {[%clk 0:02:28.3]} 14... Be6 {[%clk 0:02:23.2]} 15.
Bb2 {[%clk 0:02:19.4]} 15... Bd5 {[%clk 0:02:15]} 16. Nfd4 {[%clk 0:02:17.8]}
16... Nxd4 {[%clk 0:02:12.3]} 17. Nxd4 {[%clk 0:02:18.7]} 17... Rh5 {[%clk
0:01:49.5]} 18. f4 {[%clk 0:02:00.9]} 18... Rd8 {[%clk 0:01:19.9]} 19. Kh2
{[%clk 0:01:50.9]} 19... f6 {[%clk 0:00:56.8]} 20. c4 {[%clk 0:01:13.4]} 20...
Bg8 {[%clk 0:00:56.1]} 21. Nf3 {[%clk 0:01:00.2]} 21... Rxd1 {[%clk 0:00:55.8]}
22. Rxd1 {[%clk 0:00:59.9]} 22... Rf5 {[%clk 0:00:47.1]} 23. Re1 {[%clk
0:00:56.3]} 23... fxe5 {[%clk 0:00:27.7]} 24. Nxe5 {[%clk 0:00:51.6]} 24... Kd8
{[%clk 0:00:22.8]} 25. Ng6 {[%clk 0:00:22.3]} 25... Bf6 {[%clk 0:00:22.2]} 26.
Rd1+ {[%clk 0:00:20.1]} 26... Ke8 {[%clk 0:00:21.3]} 27. Re1+ {[%clk 0:00:20.2]}
27... Kd8 {[%clk 0:00:19.5]} 28. Rd1+ {[%clk 0:00:13.9]} 28... Ke8 {[%clk
0:00:19.8]} 29. Re1+ {[%clk 0:00:13.9]} 29... Kd7 {[%clk 0:00:20.4]} 30. Rd1+
{[%clk 0:00:11.2]} 30... Ke6 {[%clk 0:00:20.8]} 31. Re1+ {[%clk 0:00:10.4]}
31... Kd6 {[%clk 0:00:21.3]} 32. Rd1+ {[%clk 0:00:06.3]} 32... Kc5 {[%clk
0:00:21.5]} 33. Ba3+ {[%clk 0:00:06.3]} 33... Kb6 {[%clk 0:00:21.9]} 34. c5+
{[%clk 0:00:04.9]} 34... Ka7 {[%clk 0:00:22.3]} 35. Rd3 {[%clk 0:00:04.7]} 35...
Bh7 {[%clk 0:00:20.2]} 36. Nf8 {[%clk 0:00:04.7]} 36... Bg8 {[%clk 0:00:19.3]}
37. Nd7 {[%clk 0:00:04.9]} 37... Be7 {[%clk 0:00:17]} 38. Bc1 {[%clk 0:00:05.5]}
38... Bd5 {[%clk 0:00:14]} 39. Be3 {[%clk 0:00:06]} 39... Ka6 {[%clk 0:00:13.5]}
40. Ne5 {[%clk 0:00:06.3]} 40... g5 {[%clk 0:00:12.9]} 41. Ng6 {[%clk
0:00:06.2]} 41... gxf4 {[%clk 0:00:12.2]} 42. Nxe7 {[%clk 0:00:05.9]} 42... Re5
{[%clk 0:00:10.9]} 43. Nxd5 {[%clk 0:00:05.9]} 43... fxe3 {[%clk 0:00:10.3]} 44.
Nxe3 {[%clk 0:00:05.9]} 44... Rxc5 {[%clk 0:00:10.7]} 45. Ng4 {[%clk 0:00:06.1]}
45... b5 {[%clk 0:00:10.8]} 46. Rf3 {[%clk 0:00:06.9]} 46... Kb6 {[%clk
0:00:07.5]} 47. Ne5 {[%clk 0:00:06.9]} 47... Rxe5 {[%clk 0:00:07.4]} 48. Rf4
{[%clk 0:00:07.6]} 48... Kc5 {[%clk 0:00:07.2]} 49. Rxh4 {[%clk 0:00:07.5]}
49... Rd5 {[%clk 0:00:08.1]} 50. Rg4 {[%clk 0:00:07.8]} 50... Rd3 {[%clk
0:00:08.5]} 51. Rg3 {[%clk 0:00:08.3]} 51... b4 {[%clk 0:00:07.9]} 52. Rxd3
{[%clk 0:00:07.6]} 1-0

[Event "*** Titled Tuesday Blitz"]
[Site "Chess.com"]
[Date "2020.04.07"]
[Round "6"]
[White "theprosecution1"]
[Black "Mops_2004"]
[Result "1-0"]
[WhiteElo "2813"]
[BlackElo "2551"]
[TimeControl "180+1"]
[EndTime "14:08:29 PDT"]
[Termination "theprosecution1 won by resignation"]

1. e4 {[%clk 0:03:00.9]} 1... d6 {[%clk 0:02:59.6]} 2. d4 {[%clk 0:02:59.1]}
2... Nf6 {[%clk 0:02:59.7]} 3. Nc3 {[%clk 0:02:58.4]} 3... g6 {[%clk 0:02:59.9]}
4. Bc4 {[%clk 0:02:57.2]} 4... Bg7 {[%clk 0:02:59.3]} 5. Qe2 {[%clk 0:02:56.3]}
5... Nc6 {[%clk 0:02:59.2]} 6. e5 {[%clk 0:02:55.5]} 6... Nxd4 {[%clk
0:02:59.2]} 7. exf6 {[%clk 0:02:55.9]} 7... Nxe2 {[%clk 0:02:59.2]} 8. fxg7
{[%clk 0:02:56.8]} 8... Rg8 {[%clk 0:02:58.7]} 9. Ngxe2 {[%clk 0:02:57.4]} 9...
Rxg7 {[%clk 0:02:54.2]} 10. Bh6 {[%clk 0:02:50.8]} 10... Rg8 {[%clk 0:02:53]}
11. h4 {[%clk 0:02:51.7]} 11... Be6 {[%clk 0:02:50.1]} 12. Bxe6 {[%clk
0:02:51.4]} 12... fxe6 {[%clk 0:02:51]} 13. O-O-O {[%clk 0:02:52]} 13... Kd7
{[%clk 0:02:40.1]} 14. Rhe1 {[%clk 0:02:51.4]} 14... e5 {[%clk 0:02:33.9]} 15.
f4 {[%clk 0:02:49.4]} 15... exf4 {[%clk 0:02:31.8]} 16. Nxf4 {[%clk 0:02:48.5]}
16... c6 {[%clk 0:02:10.3]} 17. Bg5 {[%clk 0:02:48.2]} 17... Re8 {[%clk
0:02:09.3]} 18. Ne4 {[%clk 0:02:45.2]} 18... Qa5 {[%clk 0:02:01.7]} 19. Kb1
{[%clk 0:02:44.6]} 19... Qf5 {[%clk 0:01:41.8]} 20. a3 {[%clk 0:02:26.5]} 20...
h5 {[%clk 0:01:35.7]} 21. Ne6 {[%clk 0:02:16.5]} 21... Qf7 {[%clk 0:01:07.1]}
22. g3 {[%clk 0:01:59.7]} 22... b6 {[%clk 0:01:05.1]} 23. Nc3 {[%clk 0:01:44.5]}
23... Kc8 {[%clk 0:01:02.1]} 24. Rd4 {[%clk 0:01:22.3]} 24... Qf5 {[%clk
0:00:56.6]} 25. Rde4 {[%clk 0:01:20.9]} 25... d5 {[%clk 0:00:46.5]} 26. R4e2
{[%clk 0:01:19.3]} 26... Kb7 {[%clk 0:00:44.5]} 27. Ng7 {[%clk 0:01:19.2]} 27...
Qg4 {[%clk 0:00:39.9]} 28. Nxe8 {[%clk 0:01:19.5]} 28... Rxe8 {[%clk 0:00:40.8]}
29. Rxe7+ {[%clk 0:01:17.1]} 29... Rxe7 {[%clk 0:00:41]} 30. Rxe7+ {[%clk
0:01:18]} 30... Ka6 {[%clk 0:00:41.9]} 31. Bf4 {[%clk 0:01:17.4]} 31... d4
{[%clk 0:00:40.5]} 32. Ne2 {[%clk 0:00:56]} 32... Qf3 {[%clk 0:00:34.2]} 33. Bb8
{[%clk 0:00:49.8]} 33... c5 {[%clk 0:00:34]} 34. b3 {[%clk 0:00:46.9]} 34... Kb5
{[%clk 0:00:32.9]} 35. Kb2 {[%clk 0:00:47.4]} 35... Kc6 {[%clk 0:00:30.3]} 36.
Rc7+ {[%clk 0:00:46.8]} 36... Kd5 {[%clk 0:00:28]} 37. Nf4+ {[%clk 0:00:47.7]}
37... Ke4 {[%clk 0:00:27]} 38. Nd3 {[%clk 0:00:44]} 38... Qh1 {[%clk 0:00:22.4]}
39. Rxa7 {[%clk 0:00:43.3]} 39... Kf5 {[%clk 0:00:21.4]} 40. Rf7+ {[%clk
0:00:42.6]} 40... Ke6 {[%clk 0:00:21.1]} 41. Rg7 {[%clk 0:00:38.7]} 41... Qe4
{[%clk 0:00:17.8]} 42. Rxg6+ {[%clk 0:00:39.1]} 42... Kd7 {[%clk 0:00:18.1]} 43.
Ne5+ {[%clk 0:00:36.4]} 43... Kc8 {[%clk 0:00:17.9]} 44. Rg8+ {[%clk 0:00:35.9]}
44... Kb7 {[%clk 0:00:17.8]} 45. Bd6 {[%clk 0:00:31.1]} 45... d3 {[%clk
0:00:17.8]} 46. Rg7+ {[%clk 0:00:30.5]} 46... Ka6 {[%clk 0:00:17.9]} 47. Bb8
{[%clk 0:00:20]} 47... d2 {[%clk 0:00:11.6]} 48. a4 {[%clk 0:00:14.9]} 48... Qa8
{[%clk 0:00:09.6]} 49. Rd7 {[%clk 0:00:11]} 49... Qxb8 {[%clk 0:00:08.5]} 50.
Nc6 {[%clk 0:00:10.7]} 50... d1=Q {[%clk 0:00:08]} 51. Nxb8+ {[%clk 0:00:10.2]}
1-0

[Event "*** Titled Tuesday Blitz"]
[Site "Chess.com"]
[Date "2020.04.07"]
[Round "6"]
[White "PauloCesarCosta_sad"]
[Black "tamarozi99"]
[Result "0-1"]
[WhiteElo "2127"]
[BlackElo "1941"]
[TimeControl "180+1"]
[EndTime "14:08:30 PDT"]
[Termination "tamarozi99 won on time"]

1. Nf3 {[%clk 0:03:00.9]} 1... g6 {[%clk 0:02:57.5]} 2. d4 {[%clk 0:02:59.5]}
2... Bg7 {[%clk 0:02:57.3]} 3. Bf4 {[%clk 0:02:58.4]} 3... d6 {[%clk 0:02:56.6]}
4. e3 {[%clk 0:02:58.6]} 4... Nf6 {[%clk 0:02:56.2]} 5. Be2 {[%clk 0:02:57.5]}
5... O-O {[%clk 0:02:56]} 6. O-O {[%clk 0:02:57.5]} 6... b6 {[%clk 0:02:56.3]}
7. h3 {[%clk 0:02:57.3]} 7... Nbd7 {[%clk 0:02:56.1]} 8. Nbd2 {[%clk 0:02:56]}
8... Bb7 {[%clk 0:02:55.9]} 9. c3 {[%clk 0:02:55.9]} 9... Qe8 {[%clk 0:02:49.1]}
10. Qa4 {[%clk 0:02:51.4]} 10... e5 {[%clk 0:02:45.2]} 11. dxe5 {[%clk
0:02:49.6]} 11... dxe5 {[%clk 0:02:44.8]} 12. Bg5 {[%clk 0:02:44.2]} 12... h6
{[%clk 0:02:27.5]} 13. Bh4 {[%clk 0:02:25.7]} 13... Nc5 {[%clk 0:02:21.6]} 14.
Qxe8 {[%clk 0:02:12.9]} 14... Rfxe8 {[%clk 0:02:22.5]} 15. Rfd1 {[%clk
0:02:00.2]} 15... a5 {[%clk 0:02:20.2]} 16. Nb3 {[%clk 0:01:55.3]} 16... Nfe4
{[%clk 0:01:59.4]} 17. Nxc5 {[%clk 0:01:52.8]} 17... Nxc5 {[%clk 0:01:59]} 18.
Bb5 {[%clk 0:01:47.5]} 18... c6 {[%clk 0:01:56.5]} 19. Be2 {[%clk 0:01:42.9]}
19... f5 {[%clk 0:01:39.6]} 20. Bg3 {[%clk 0:01:40.2]} 20... Ne4 {[%clk
0:01:35.5]} 21. Bc4+ {[%clk 0:01:38.6]} 21... Kf8 {[%clk 0:01:29.1]} 22. Rd7
{[%clk 0:01:34.7]} 22... Re7 {[%clk 0:01:15.6]} 23. Rxe7 {[%clk 0:01:25.2]}
23... Kxe7 {[%clk 0:01:15.1]} 24. Bxe5 {[%clk 0:01:25.7]} 24... Bxe5 {[%clk
0:01:06.5]} 25. Nxe5 {[%clk 0:01:25.8]} 25... Kf6 {[%clk 0:01:06.5]} 26. Nd7+
{[%clk 0:01:22.3]} 26... Ke7 {[%clk 0:01:04.8]} 27. Nxb6 {[%clk 0:01:23.2]}
27... Rd8 {[%clk 0:01:03.6]} 28. Na4 {[%clk 0:01:10.2]} 28... Rd2 {[%clk
0:01:00.5]} 29. Rf1 {[%clk 0:01:06.9]} 29... g5 {[%clk 0:00:55.9]} 30. a3 {[%clk
0:01:01.1]} 30... g4 {[%clk 0:00:38.6]} 31. hxg4 {[%clk 0:00:59.9]} 31... fxg4
{[%clk 0:00:38.9]} 32. g3 {[%clk 0:00:52.9]} 32... c5 {[%clk 0:00:34.9]} 33. b3
{[%clk 0:00:40.2]} 33... Nxg3 {[%clk 0:00:29.2]} 34. Re1 {[%clk 0:00:30.2]}
34... Ne4 {[%clk 0:00:26.9]} 35. Rf1 {[%clk 0:00:23.1]} 35... h5 {[%clk
0:00:23.1]} 36. Nb6 {[%clk 0:00:21.6]} 36... Nxc3 {[%clk 0:00:17]} 37. Re1
{[%clk 0:00:11.3]} 37... Ne4 {[%clk 0:00:15.9]} 38. Re2 {[%clk 0:00:06]} 38...
Rxe2 {[%clk 0:00:14.4]} 39. Bxe2 {[%clk 0:00:05.4]} 39... Nd2 {[%clk 0:00:13.8]}
40. Nc4 {[%clk 0:00:04.8]} 40... Nxb3 {[%clk 0:00:12.7]} 41. Bd1 {[%clk
0:00:03.9]} 41... a4 {[%clk 0:00:12.4]} 42. Nb2 {[%clk 0:00:03.5]} 42... Bc6
{[%clk 0:00:12.2]} 43. Nc4 {[%clk 0:00:03.4]} 43... Ke6 {[%clk 0:00:11.3]} 44.
Nb2 {[%clk 0:00:02.4]} 44... Kd5 {[%clk 0:00:11.3]} 45. Bc2 {[%clk 0:00:01.8]}
45... Na1 {[%clk 0:00:08.5]} 0-1

[Event "*** Titled Tuesday Blitz"]
[Site "Chess.com"]
[Date "2020.04.07"]
[Round "6"]
[White "JoakimVonAnd"]
[Black "Mr_Sinigami"]
[Result "0-1"]
[WhiteElo "2483"]
[BlackElo "2607"]
[TimeControl "180+1"]
[EndTime "14:08:31 PDT"]
[Termination "Mr_Sinigami won by checkmate"]

1. d4 {[%clk 0:03:00.9]} 1... Nf6 {[%clk 0:02:59]} 2. c4 {[%clk 0:03:00.9]} 2...
c5 {[%clk 0:02:59]} 3. d5 {[%clk 0:03:00.7]} 3... b5 {[%clk 0:02:59.4]} 4. cxb5
{[%clk 0:03:01.6]} 4... a6 {[%clk 0:02:59.9]} 5. e3 {[%clk 0:03:01.4]} 5... d6
{[%clk 0:02:59.3]} 6. Nc3 {[%clk 0:03:00.9]} 6... g6 {[%clk 0:02:59.6]} 7. Nf3
{[%clk 0:03:00.3]} 7... Bg7 {[%clk 0:03:00.1]} 8. a4 {[%clk 0:03:00.3]} 8... O-O
{[%clk 0:03:00]} 9. Ra3 {[%clk 0:03:00.2]} 9... Nbd7 {[%clk 0:02:56.1]} 10. e4
{[%clk 0:02:58.6]} 10... axb5 {[%clk 0:02:52]} 11. Bxb5 {[%clk 0:02:57.9]} 11...
Ba6 {[%clk 0:02:48.6]} 12. O-O {[%clk 0:02:52]} 12... Qb6 {[%clk 0:02:41.5]} 13.
Qe2 {[%clk 0:02:50.5]} 13... Rfb8 {[%clk 0:02:39.5]} 14. Be3 {[%clk 0:02:48.4]}
14... Ne8 {[%clk 0:02:38]} 15. Qc2 {[%clk 0:01:55.7]} 15... Bxc3 {[%clk
0:02:20.2]} 16. Qxc3 {[%clk 0:01:41.2]} 16... Bxb5 {[%clk 0:02:19.4]} 17. axb5
{[%clk 0:01:41]} 17... Qxb5 {[%clk 0:02:18.8]} 18. Rxa8 {[%clk 0:01:39]} 18...
Rxa8 {[%clk 0:02:18.1]} 19. e5 {[%clk 0:01:39]} 19... Rb8 {[%clk 0:02:08.5]} 20.
Bg5 {[%clk 0:01:35.2]} 20... Qxb2 {[%clk 0:01:58.8]} 21. Qxb2 {[%clk 0:01:08]}
21... Rxb2 {[%clk 0:01:57.4]} 22. exd6 {[%clk 0:01:03.8]} 22... exd6 {[%clk
0:01:54.3]} 23. Re1 {[%clk 0:01:03]} 23... Nef6 {[%clk 0:01:53.5]} 24. Bf4
{[%clk 0:00:58.8]} 24... Rb6 {[%clk 0:01:46.4]} 25. Bh6 {[%clk 0:00:51.6]} 25...
Rb8 {[%clk 0:01:39.2]} 26. Bf4 {[%clk 0:00:50.1]} 26... Nxd5 {[%clk 0:01:24.7]}
27. Bxd6 {[%clk 0:00:49.5]} 27... Rc8 {[%clk 0:01:25.2]} 28. Rd1 {[%clk
0:00:48.9]} 28... N7f6 {[%clk 0:01:17.7]} 29. g4 {[%clk 0:00:40.3]} 29... h6
{[%clk 0:01:01.1]} 30. h4 {[%clk 0:00:39.6]} 30... Nc3 {[%clk 0:01:00.7]} 31.
Rd3 {[%clk 0:00:27.3]} 31... Nfe4 {[%clk 0:00:59.9]} 32. Be5 {[%clk 0:00:26.8]}
32... Nb5 {[%clk 0:00:45.9]} 33. Re3 {[%clk 0:00:25.5]} 33... f5 {[%clk
0:00:43.7]} 34. gxf5 {[%clk 0:00:24.5]} 34... gxf5 {[%clk 0:00:44.6]} 35. Rb3
{[%clk 0:00:21.1]} 35... Nbd6 {[%clk 0:00:40.1]} 36. Rb6 {[%clk 0:00:16.8]}
36... Nf7 {[%clk 0:00:35.4]} 37. Rg6+ {[%clk 0:00:16.5]} 37... Kf8 {[%clk
0:00:34.8]} 38. Bg7+ {[%clk 0:00:16.6]} 38... Ke7 {[%clk 0:00:34.8]} 39. Ne5
{[%clk 0:00:12.6]} 39... Nxe5 {[%clk 0:00:28.8]} 40. Bxe5 {[%clk 0:00:13.5]}
40... c4 {[%clk 0:00:29]} 41. Rxh6 {[%clk 0:00:13.8]} 41... c3 {[%clk
0:00:28.6]} 42. Bxc3 {[%clk 0:00:13.9]} 42... Rxc3 {[%clk 0:00:27.8]} 43. Ra6
{[%clk 0:00:11.6]} 43... Rc1+ {[%clk 0:00:26.6]} 44. Kg2 {[%clk 0:00:11]} 44...
Rc2 {[%clk 0:00:27.2]} 45. Ra4 {[%clk 0:00:08.8]} 45... Rxf2+ {[%clk 0:00:26.9]}
46. Kh3 {[%clk 0:00:08.5]} 46... Kf6 {[%clk 0:00:26.2]} 47. Ra6+ {[%clk
0:00:07.2]} 47... Ke5 {[%clk 0:00:26.3]} 48. Ra5+ {[%clk 0:00:07.4]} 48... Kf4
{[%clk 0:00:26.1]} 49. h5 {[%clk 0:00:07.6]} 49... Ng5+ {[%clk 0:00:25.5]} 50.
Kh4 {[%clk 0:00:07.9]} 50... Rh2# {[%clk 0:00:26.4]} 0-1